[Event "Fagernes GM Open Autumn 2024"]
[Site "Fagernes"]
[Date "2024.10.07"]
[Round "2.21"]
[White "Kaewpitakkun, Pantham"]
[Black "Krivenko, Dion"]
[Result "0-1"]
[ECO "B06"]
[WhiteElo "2023"]
[BlackElo "2244"]
[Annotator "RC"]
[PlyCount "78"]
[EventDate "2024.10.03"]
[EventType "swiss"]
[EventCountry "NOR"]
[SourceTitle "playchess.com"]
[Source "ChessBase"]
[SourceQuality "1"]
[TimeControl "40/6000:2400+30"]

1. e4 {[%emt 0:00:00]} g6 {[%emt 0:00:33]} 2. d4 {[%emt 0:00:00]} d6 {[%emt 0:00:00]} 3. Nc3 {[%emt 0:00:00]} a6 {[%emt 0:00:00]} 4. Be3 {[%emt 0:02:08]} Nd7 {[%emt 0:00:22]} 5. Qd2 {[%emt 0:02:14]} Ngf6 {[%emt 0:01:34]} 6. Be2 {[%emt 0:05:03]} b5 {[%emt 0:04:18]} 7. a3 {[%emt 0:00:46]} Bb7 {[%emt 0:00:53]} 8. f3 {[%emt 0:01:28]} e5 {[%emt 0:04:28]} 9. d5 {[%emt 0:04:34]} Bg7 {[%emt 0:04:00]} 10. Nh3 {[%emt 0:02:06]} O-O {[%emt 0:01:16]} 11. Nf2 {[%emt 0:03:00]} Nh5 {[%emt 0:10:26]} 12. O-O-O {[%emt 0:03:45]} Rc8 {[%emt 0:04:49]} 13. Nd3 {[%emt 0:03:00]} Nb6 {[%emt 0:02:27]} 14. b3 {[%emt 0:00:35]} Nf4 {[%emt 0:02:10]} 15. Nxf4 {[%emt 0:06:13]} exf4 {[%emt 0:00:11]} 16. Bd4 {[%emt 0:00:00]} Be5 {[%emt 0:02:17]} 17. Kb2 {[%emt 0:02:32]} Qf6 {[%emt 0:02:21]} 18. Bxe5 {[%emt 0:03:54]} dxe5 {[%emt 0:05:12]} 19. g4 {[%emt 0:02:51]} Rfd8 {[%emt 0:01:30]} 20. h4 {[%emt 0:03:04]} c6 {[%emt 0:02:30]} 21. d6 {[%emt 0:02:20]} c5 {[%emt 0:07:24]} 22. g5 {[%emt 0:02:33]} Qg7 {[%emt 0:19:00]} 23. h5 {[%emt 0:06:51]} Rc6 {[%emt 0:01:39]} 24. Bf1 {[%emt 0:06:55]} Bc8 {[%emt 0:08:31]} 25. hxg6 {[%emt 0:03:05]} fxg6 {[%emt 0:05:44]} 26. Nd5 {[%emt 0:04:44]} Rcxd6 {[%emt 0:00:10]} 27. Qf2 {[%emt 0:04:37]} Rxd5 {[%emt 0:05:17]} 28. exd5 {[%emt 0:01:32]} e4+ {[%emt 0:00:00]} 29. Ka2 {[%emt 0:00:43]} e3 {[%emt 0:00:00]} 30. Qh4 {[%emt 0:01:50]} Rxd5 {[%emt 0:00:14]} 31. Bh3 {[%emt 0:00:57]} Qc3 {[%emt 0:00:08]} 32. Rxd5 {[%emt 0:03:26]} Qxc2+ {[%emt 0:00:00]} 33. Ka1 {[%emt 0:00:00]} Qc3+ {[%emt 0:00:00]} 34. Ka2 {[%emt 0:00:00]} Nxd5 {[%emt 0:00:00]} 35. Rh2 {[%emt 0:00:30]} Qc1 {[%emt 0:00:03]} 36. Be6+ {[%emt 0:00:37]} Bxe6 {[%emt 0:00:00]} 37. Qxh7+ {[%emt 0:00:00]} Kf8 {[%emt 0:00:00]} 38. Qh8+ {[%emt 0:00:00]} Bg8 {[%emt 0:00:00]} 39. Qh6+ {[%emt 0:02:52]} Kf7 {[%emt 0:00:00]} 0-1

[Event "Fagernes GM Open Autumn 2024"]
[Site "Fagernes"]
[Date "2024.10.07"]
[Round "2.22"]
[White "Kittilsen, Sigurd"]
[Black "Welling, Gerard"]
[Result "1/2-1/2"]
[ECO "C45"]
[WhiteElo "1981"]
[BlackElo "2206"]
[Annotator "RC"]
[PlyCount "116"]
[EventDate "2024.10.03"]
[EventType "swiss"]
[EventCountry "NOR"]
[SourceTitle "playchess.com"]
[Source "ChessBase"]
[SourceQuality "1"]
[TimeControl "40/6000:2400+30"]

1. e4 {[%emt 0:00:00]} e5 {[%emt 0:00:00]} 2. Nf3 {[%emt 0:00:00]} Nc6 {[%emt 0:00:00]} 3. d4 {[%emt 0:00:00]} exd4 {[%emt 0:00:00]} 4. Nxd4 {[%emt 0:00:00]} Nge7 {[%emt 0:00:43]} 5. Bc4 {[%emt 0:02:30]} Nxd4 {[%emt 0:00:02]} 6. Qxd4 {[%emt 0:00:00]} Nc6 {[%emt 0:00:00]} 7. Qd5 {[%emt 0:00:13]} Qf6 {[%emt 0:00:00]} 8. Bg5 {[%emt 0:06:15]} Qg6 {[%emt 0:08:01]} 9. O-O {[%emt 0:17:09]} Ne7 {[%emt 0:08:36]} 10. Qd2 {[%emt 0:04:24]} Nc6 {[%emt 0:18:32]} 11. Bf4 {[%emt 0:14:04]} Bb4 {[%emt 0:05:28]} 12. c3 {[%emt 0:09:35]} Ba5 {[%emt 0:00:48]} 13. Bd3 {[%emt 0:00:00]} O-O {[%emt 0:13:05]} 14. Na3 {[%emt 0:03:05]} d6 {[%emt 0:06:09]} 15. Nc4 {[%emt 0:05:28]} Qh5 {[%emt 0:07:28]} 16. Nxa5 {[%emt 0:01:27]} Qxa5 {[%emt 0:01:07]} 17. Qe2 {[%emt 0:02:02]} Ne5 {[%emt 0:03:25]} 18. Qh5 {[%emt 0:05:28]} g6 {[%emt 0:01:59]} 19. Qe2 {[%emt 0:00:07]} Nxd3 {[%emt 0:02:16]} 20. Qxd3 {[%emt 0:00:00]} Be6 {[%emt 0:01:21]} 21. Bh6 {[%emt 0:06:09]} Rfe8 {[%emt 0:00:00]} 22. Qd4 {[%emt 0:00:00]} Qe5 {[%emt 0:00:00]} 23. f4 {[%emt 0:00:06]} Qxd4+ {[%emt 0:00:00]} 24. cxd4 {[%emt 0:00:00]} f5 {[%emt 0:00:00]} 25. exf5 {[%emt 0:02:58]} Bxf5 {[%emt 0:01:15]} 26. Rfe1 {[%emt 0:00:15]} c6 {[%emt 0:00:53]} 27. Kf2 {[%emt 0:01:27]} Kf7 {[%emt 0:00:00]} 28. Rxe8 {[%emt 0:00:05]} Rxe8 {[%emt 0:00:00]} 29. Re1 {[%emt 0:00:00]} Be6 {[%emt 0:02:47]} 30. a3 {[%emt 0:03:12]} a5 {[%emt 0:00:51]} 31. Bg5 {[%emt 0:02:05]} a4 {[%emt 0:00:59]} 32. Re4 {[%emt 0:00:55]} Ra8 {[%emt 0:00:16]} 33. Ke1 {[%emt 0:01:40]} Ra5 {[%emt 0:00:40]} 34. Kd2 {[%emt 0:03:01]} Rb5 {[%emt 0:00:37]} 35. Kc1 {[%emt 0:00:00]} Rd5 {[%emt 0:04:44]} 36. Bd8 {[%emt 0:01:01]} b5 {[%emt 0:01:49]} 37. Bb6 {[%emt 0:00:26]} Rh5 {[%emt 0:00:46]} 38. h3 {[%emt 0:00:46]} Bd5 {[%emt 0:00:26]} 39. Re2 {[%emt 0:00:05]} Rf5 {[%emt 0:02:22]} 40. g3 {[%emt 0:01:43]} Bb3 {[%emt 0:00:20]} 41. Kd2 {[%emt 0:08:01]} Be6 {[%emt 0:07:04]} 42. Kc3 {[%emt 0:04:00]} Ke7 {[%emt 0:03:44]} 43. Re3 {[%emt 0:02:57]} Kd7 {[%emt 0:00:54]} 44. h4 {[%emt 0:04:32]} Rf8 {[%emt 0:01:28]} 45. Ba5 {[%emt 0:01:23]} Ra8 {[%emt 0:00:21]} 46. Bb4 {[%emt 0:01:04]} Rc8 {[%emt 0:01:10]} 47. Kd2 {[%emt 0:00:54]} c5 {[%emt 0:01:59]} 48. dxc5 {[%emt 0:00:49]} dxc5 {[%emt 0:00:03]} 49. Bc3 {[%emt 0:02:58]} Bf5 {[%emt 0:01:22]} 50. Bf6 {[%emt 0:00:23]} Kc6 {[%emt 0:06:33]} 51. Be7 {[%emt 0:01:40]} Rc7 {[%emt 0:04:34]} 52. Re5 {[%emt 0:00:57]} Rd7+ {[%emt 0:00:22]} 53. Ke2 {[%emt 0:02:45]} c4 {[%emt 0:00:44]} 54. Bb4 {[%emt 0:02:23]} Rd3 {[%emt 0:01:23]} 55. Re3 {[%emt 0:03:40]} Bg4+ {[%emt 0:00:49]} 56. Kf2 {[%emt 0:00:10]} Rd1 {[%emt 0:02:45]} 57. Re1 {[%emt 0:00:07]} Rxe1 {[%emt 0:03:32]} 58. Bxe1 {[%emt 0:00:22]} Kd5 {[%emt 0:00:08]} 1/2-1/2

[Event "Fagernes GM Open Autumn 2024"]
[Site "Fagernes"]
[Date "2024.10.07"]
[Round "2.23"]
[White "Sorgjerd, Jan"]
[Black "Westrum, Kim Roger Hansen"]
[Result "1/2-1/2"]
[ECO "D78"]
[WhiteElo "1966"]
[BlackElo "2205"]
[Annotator "RC"]
[PlyCount "90"]
[EventDate "2024.10.03"]
[EventType "swiss"]
[EventCountry "NOR"]
[SourceTitle "playchess.com"]
[Source "ChessBase"]
[SourceQuality "1"]
[TimeControl "40/6000:2400+30"]

1. d4 {[%emt 0:00:00]} Nf6 {[%emt 0:00:00]} 2. c4 {[%emt 0:00:00]} e6 {[%emt 0:00:00]} 3. Nc3 {[%emt 0:00:00]} d5 {[%emt 0:00:00]} 4. Nf3 {[%emt 0:00:00]} c6 {[%emt 0:00:00]} 5. Bg5 {[%emt 0:03:15]} h6 {[%emt 0:00:00]} 6. Bxf6 {[%emt 0:00:11]} Qxf6 {[%emt 0:00:00]} 7. cxd5 {[%emt 0:06:21]} exd5 {[%emt 0:00:00]} 8. g3 {[%emt 0:00:00]} g6 {[%emt 0:31:58]} 9. Bg2 {[%emt 0:00:59]} Bg7 {[%emt 0:00:00]} 10. O-O {[%emt 0:00:09]} O-O {[%emt 0:00:00]} 11. h3 {[%emt 0:10:32]} Qd6 {[%emt 0:07:25]} 12. e3 {[%emt 0:04:07]} Be6 {[%emt 0:00:47]} 13. Rc1 {[%emt 0:00:38]} Nd7 {[%emt 0:00:29]} 14. Na4 {[%emt 0:02:12]} b6 {[%emt 0:03:03]} 15. Qe2 {[%emt 0:09:38]} Rfc8 {[%emt 0:13:37]} 16. Rfd1 {[%emt 0:03:19]} Qb4 {[%emt 0:12:17]} 17. Nc3 {[%emt 0:05:23]} a5 {[%emt 0:00:51]} 18. Ne1 {[%emt 0:13:52]} a4 {[%emt 0:03:59]} 19. Nd3 {[%emt 0:01:01]} Qd6 {[%emt 0:01:12]} 20. a3 {[%emt 0:01:05]} g5 {[%emt 0:02:43]} 21. Nb4 {[%emt 0:01:47]} f5 {[%emt 0:06:35]} 22. Qe1 {[%emt 0:13:38]} Nf6 {[%emt 0:00:20]} 23. Rc2 {[%emt 0:01:56]} Ne4 {[%emt 0:01:28]} 24. f4 {[%emt 0:02:14]} Ra7 {[%emt 0:02:13]} 25. Nd3 {[%emt 0:02:41]} Kh8 {[%emt 0:01:17]} 26. Kh2 {[%emt 0:03:24]} Bf6 {[%emt 0:00:41]} 27. Ne5 {[%emt 0:01:21]} Kh7 {[%emt 0:01:25]} 28. Rdc1 {[%emt 0:00:54]} Nxc3 {[%emt 0:02:21]} 29. Rxc3 {[%emt 0:00:00]} Bxe5 {[%emt 0:00:26]} 30. fxe5 {[%emt 0:00:04]} Qd7 {[%emt 0:00:00]} 31. R1c2 {[%emt 0:00:15]} Bf7 {[%emt 0:01:08]} 32. Qc1 {[%emt 0:00:22]} Be8 {[%emt 0:00:00]} 33. Rf2 {[%emt 0:00:00]} Qe6 {[%emt 0:00:15]} 34. Bf1 {[%emt 0:00:00]} Bg6 {[%emt 0:01:39]} 35. Bd3 {[%emt 0:00:31]} Kg7 {[%emt 0:01:06]} 36. g4 {[%emt 0:03:07]} Rf7 {[%emt 0:00:00]} 37. Bxf5 {[%emt 0:01:50]} Bxf5 {[%emt 0:00:00]} 38. gxf5 {[%emt 0:00:00]} Rxf5 {[%emt 0:00:00]} 39. Rxf5 {[%emt 0:00:32]} Qxf5 {[%emt 0:00:00]} 40. Rxc6 {[%emt 0:00:00]} Qf2+ {[%emt 0:00:00]} 41. Kh1 {[%emt 0:40:20]} Rxc6 {[%emt 0:04:48]} 42. Qxc6 {[%emt 0:00:00]} Qf1+ {[%emt 0:00:07]} 43. Kh2 {[%emt 0:00:00]} Qf2+ {[%emt 0:00:20]} 44. Kh1 {[%emt 0:00:00]} Qf1+ {[%emt 0:00:04]} 45. Kh2 {[%emt 0:00:00]} Qf2+ {[%emt 0:00:24]} 1/2-1/2

[Event "Fagernes GM Open Autumn 2024"]
[Site "Fagernes"]
[Date "2024.10.07"]
[Round "2.24"]
[White "Gudbrandsen, Gustav"]
[Black "Hetland, Even"]
[Result "1/2-1/2"]
[ECO "B23"]
[WhiteElo "2197"]
[BlackElo "1970"]
[Annotator "RC"]
[PlyCount "59"]
[EventDate "2024.10.03"]
[EventType "swiss"]
[EventCountry "NOR"]
[SourceTitle "playchess.com"]
[Source "ChessBase"]
[SourceQuality "1"]
[TimeControl "40/6000:2400+30"]

1. e4 {[%emt 0:00:00]} c5 {[%emt 0:00:00]} 2. f4 {[%emt 0:00:16]} Nc6 {[%emt 0:00:38]} 3. Nc3 {[%emt 0:01:45]} d6 {[%emt 0:00:16]} 4. Nf3 {[%emt 0:02:09]} g6 {[%emt 0:00:00]} 5. Bb5 {[%emt 0:05:59]} Bg7 {[%emt 0:07:17]} 6. O-O {[%emt 0:01:32]} Bd7 {[%emt 0:03:28]} 7. Qe2 {[%emt 0:06:28]} e6 {[%emt 0:09:05]} 8. d3 {[%emt 0:09:29]} Nge7 {[%emt 0:02:43]} 9. Be3 {[%emt 0:08:16]} O-O {[%emt 0:04:25]} 10. Qf2 {[%emt 0:01:02]} a6 {[%emt 0:20:19]} 11. Bxc6 {[%emt 0:09:59]} Nxc6 {[%emt 0:00:00]} 12. d4 {[%emt 0:00:43]} cxd4 {[%emt 0:00:00]} 13. Nxd4 {[%emt 0:00:00]} e5 {[%emt 0:12:57]} 14. Nxc6 {[%emt 0:01:08]} bxc6 {[%emt 0:00:05]} 15. fxe5 {[%emt 0:00:38]} Bxe5 {[%emt 0:00:00]} 16. Bh6 {[%emt 0:01:16]} Bg7 {[%emt 0:01:53]} 17. Bxg7 {[%emt 0:00:13]} Kxg7 {[%emt 0:00:00]} 18. Qd4+ {[%emt 0:00:40]} Kg8 {[%emt 0:00:00]} 19. Qxd6 {[%emt 0:04:22]} Qb6+ {[%emt 0:02:00]} 20. Kh1 {[%emt 0:01:21]} Qxb2 {[%emt 0:03:33]} 21. Na4 {[%emt 0:04:47]} Qxc2 {[%emt 0:01:35]} 22. Nc5 {[%emt 0:00:16]} Bg4 {[%emt 0:03:22]} 23. h3 {[%emt 0:01:00]} Rad8 {[%emt 0:04:30]} 24. Qe5 {[%emt 0:03:59]} Rde8 {[%emt 0:03:10]} 25. Qd4 {[%emt 0:04:39]} Be6 {[%emt 0:02:16]} 26. Rf2 {[%emt 0:03:12]} Qc4 {[%emt 0:03:37]} 27. Qxc4 {[%emt 0:00:21]} Bxc4 {[%emt 0:00:00]} 28. Rc1 {[%emt 0:03:18]} Be6 {[%emt 0:00:00]} 29. Nxa6 {[%emt 0:01:16]} Rc8 {[%emt 0:01:52]} 30. Nc5 {[%emt 0:00:30]} 1/2-1/2

[Event "Fagernes GM Open Autumn 2024"]
[Site "Fagernes"]
[Date "2024.10.07"]
[Round "2.25"]
[White "Rustan, Elias Buschmann"]
[Black "Soham Datar"]
[Result "0-1"]
[ECO "B38"]
[WhiteElo "1941"]
[BlackElo "2188"]
[Annotator "RC"]
[PlyCount "90"]
[EventDate "2024.10.03"]
[EventType "swiss"]
[EventCountry "NOR"]
[SourceTitle "playchess.com"]
[Source "ChessBase"]
[SourceQuality "1"]
[TimeControl "40/6000:2400+30"]

1. e4 {[%emt 0:00:00]} g6 {[%emt 0:00:00]} 2. Nf3 {[%emt 0:00:00]} Bg7 {[%emt 0:00:00]} 3. d4 {[%emt 0:00:00]} d6 {[%emt 0:00:00]} 4. c4 {[%emt 0:00:44]} Nf6 {[%emt 0:04:22]} 5. Nc3 {[%emt 0:01:47]} O-O {[%emt 0:00:00]} 6. Be2 {[%emt 0:03:47]} c5 {[%emt 0:03:40]} 7. h3 {[%emt 0:06:01]} cxd4 {[%emt 0:03:40]} 8. Nxd4 {[%emt 0:00:00]} Nc6 {[%emt 0:00:00]} 9. Be3 {[%emt 0:01:07]} Bd7 {[%emt 0:00:00]} 10. O-O {[%emt 0:01:00]} Nxd4 {[%emt 0:00:00]} 11. Bxd4 {[%emt 0:00:00]} Bc6 {[%emt 0:00:00]} 12. e5 {[%emt 0:16:09]} dxe5 {[%emt 0:00:00]} 13. Bxe5 {[%emt 0:00:16]} Qa5 {[%emt 0:00:00]} 14. Nb5 {[%emt 0:05:02]} Bxb5 {[%emt 0:33:05]} 15. cxb5 {[%emt 0:01:04]} Rfd8 {[%emt 0:17:17]} 16. Qb3 {[%emt 0:05:17]} Ne4 {[%emt 0:01:18]} 17. Bxg7 {[%emt 0:02:24]} Kxg7 {[%emt 0:00:49]} 18. Qe3 {[%emt 0:02:12]} Qb4 {[%emt 0:06:43]} 19. a3 {[%emt 0:09:17]} Qd4 {[%emt 0:00:00]} 20. Qxd4+ {[%emt 0:01:25]} Rxd4 {[%emt 0:00:00]} 21. Rfd1 {[%emt 0:00:29]} Rxd1+ {[%emt 0:01:33]} 22. Rxd1 {[%emt 0:00:14]} Nd6 {[%emt 0:00:00]} 23. Rc1 {[%emt 0:05:02]} Rc8 {[%emt 0:00:00]} 24. Rxc8 {[%emt 0:00:44]} Nxc8 {[%emt 0:00:00]} 25. f4 {[%emt 0:07:47]} f5 {[%emt 0:00:00]} 26. Kf2 {[%emt 0:11:00]} Kf6 {[%emt 0:00:00]} 27. Ke3 {[%emt 0:01:05]} e5 {[%emt 0:00:00]} 28. b3 {[%emt 0:06:18]} b6 {[%emt 0:00:00]} 29. a4 {[%emt 0:00:36]} exf4+ {[%emt 0:01:36]} 30. Kxf4 {[%emt 0:00:00]} g5+ {[%emt 0:00:00]} 31. Ke3 {[%emt 0:00:00]} Ke5 {[%emt 0:00:00]} 32. Bd3 {[%emt 0:07:48]} h5 {[%emt 0:00:00]} 33. Be2 {[%emt 0:00:00]} h4 {[%emt 0:00:00]} 34. Bc4 {[%emt 0:00:52]} Ne7 {[%emt 0:00:00]} 35. Bf7 {[%emt 0:00:00]} Nc8 {[%emt 0:00:00]} 36. Bc4 {[%emt 0:00:00]} Nd6 {[%emt 0:00:00]} 37. Bd3 {[%emt 0:00:01]} Ne8 {[%emt 0:00:00]} 38. Bc4 {[%emt 0:00:00]} Nf6 {[%emt 0:00:00]} 39. Bf7 {[%emt 0:00:00]} g4 {[%emt 0:00:00]} 40. hxg4 {[%emt 0:00:00]} fxg4 {[%emt 0:00:00]} 41. Bc4 {[%emt 0:03:40]} Ne4 {[%emt 0:00:02]} 42. Bf1 {[%emt 0:07:39]} Ng3 {[%emt 0:01:03]} 43. Bd3 {[%emt 0:01:45]} h3 {[%emt 0:00:13]} 44. gxh3 {[%emt 0:01:19]} gxh3 {[%emt 0:00:06]} 45. Kf3 {[%emt 0:02:33]} h2 {[%emt 0:00:10]} 0-1

[Event "Fagernes GM Open Autumn 2024"]
[Site "Fagernes"]
[Date "2024.10.07"]
[Round "2.26"]
[White "Sian, Shadi"]
[Black "Stromhaug, Kristoffer Wang"]
[Result "1-0"]
[ECO "D13"]
[WhiteElo "2182"]
[BlackElo "1960"]
[Annotator "RC"]
[PlyCount "65"]
[EventDate "2024.10.03"]
[EventType "swiss"]
[EventCountry "NOR"]
[SourceTitle "playchess.com"]
[Source "ChessBase"]
[SourceQuality "1"]
[TimeControl "40/6000:2400+30"]

1. c4 {[%emt 0:00:19]} c6 {[%emt 0:01:06]} 2. d4 {[%emt 0:00:11]} d5 {[%emt 0:00:00]} 3. cxd5 {[%emt 0:00:00]} cxd5 {[%emt 0:00:00]} 4. Nc3 {[%emt 0:00:00]} Nf6 {[%emt 0:00:08]} 5. Nf3 {[%emt 0:00:00]} Nc6 {[%emt 0:00:00]} 6. Bf4 {[%emt 0:00:00]} Bg4 {[%emt 0:01:05]} 7. e3 {[%emt 0:00:45]} e6 {[%emt 0:01:22]} 8. Be2 {[%emt 0:02:04]} Bxf3 {[%emt 0:01:59]} 9. Bxf3 {[%emt 0:01:08]} Bd6 {[%emt 0:03:48]} 10. Bg5 {[%emt 0:00:51]} O-O {[%emt 0:01:56]} 11. O-O {[%emt 0:00:00]} h6 {[%emt 0:03:26]} 12. Bh4 {[%emt 0:00:13]} g5 {[%emt 0:17:59]} 13. Bg3 {[%emt 0:00:00]} Bxg3 {[%emt 0:00:00]} 14. hxg3 {[%emt 0:00:00]} Qd6 {[%emt 0:00:40]} 15. Qd2 {[%emt 0:14:48]} Rab8 {[%emt 0:06:13]} 16. Rfd1 {[%emt 0:04:22]} b5 {[%emt 0:08:40]} 17. Rac1 {[%emt 0:02:12]} Rfd8 {[%emt 0:11:31]} 18. Qc2 {[%emt 0:14:24]} Rdc8 {[%emt 0:09:02]} 19. Qd2 {[%emt 0:23:34]} Rd8 {[%emt 0:03:29]} 20. Be2 {[%emt 0:01:41]} a6 {[%emt 0:13:15]} 21. Bd3 {[%emt 0:01:18]} Kg7 {[%emt 0:01:57]} 22. Qe2 {[%emt 0:04:05]} Rbc8 {[%emt 0:02:18]} 23. a4 {[%emt 0:05:37]} b4 {[%emt 0:01:02]} 24. Nb1 {[%emt 0:00:00]} Nb8 {[%emt 0:01:48]} 25. Nd2 {[%emt 0:01:15]} Rc6 {[%emt 0:00:20]} 26. Rxc6 {[%emt 0:06:36]} Qxc6 {[%emt 0:00:00]} 27. Ra1 {[%emt 0:00:00]} a5 {[%emt 0:03:47]} 28. Nb3 {[%emt 0:00:00]} Qb6 {[%emt 0:00:00]} 29. Rc1 {[%emt 0:00:00]} Nfd7 {[%emt 0:02:03]} 30. Bb5 {[%emt 0:00:13]} f5 {[%emt 0:00:27]} 31. Qc2 {[%emt 0:00:23]} Nf6 {[%emt 0:00:05]} 32. Qc7+ {[%emt 0:00:07]} Nbd7 {[%emt 0:00:00]} 33. Nxa5 {[%emt 0:00:18]} 1-0

[Event "Fagernes GM Open Autumn 2024"]
[Site "Fagernes"]
[Date "2024.10.07"]
[Round "2.27"]
[White "Juodziukynas, Aidas"]
[Black "Vijayakumar, Rishi"]
[Result "0-1"]
[ECO "E05"]
[WhiteElo "1917"]
[BlackElo "2172"]
[Annotator "RC"]
[PlyCount "42"]
[EventDate "2024.10.03"]
[EventType "swiss"]
[EventCountry "NOR"]
[SourceTitle "playchess.com"]
[Source "ChessBase"]
[SourceQuality "1"]
[TimeControl "40/6000:2400+30"]

1. d4 {[%emt 0:00:51]} Nf6 {[%emt 0:00:00]} 2. Nf3 {[%emt 0:00:00]} d5 {[%emt 0:00:00]} 3. c4 {[%emt 0:00:00]} e6 {[%emt 0:00:00]} 4. g3 {[%emt 0:00:00]} Be7 {[%emt 0:00:00]} 5. Bg2 {[%emt 0:00:41]} O-O {[%emt 0:00:00]} 6. O-O {[%emt 0:00:00]} dxc4 {[%emt 0:00:00]} 7. Qc2 {[%emt 0:00:16]} b6 {[%emt 0:00:00]} 8. Ne5 {[%emt 0:01:26]} Qxd4 {[%emt 0:00:00]} 9. Bxa8 {[%emt 0:00:11]} Qxe5 {[%emt 0:00:00]} 10. Bf3 {[%emt 0:00:29]} Nd5 {[%emt 0:00:00]} 11. Qxc4 {[%emt 0:00:43]} Bf6 {[%emt 0:12:44]} 12. Nd2 {[%emt 0:09:24]} Ba6 {[%emt 0:03:38]} 13. Qe4 {[%emt 0:03:12]} Nc6 {[%emt 0:00:03]} 14. Qxe5 {[%emt 0:00:46]} Nxe5 {[%emt 0:11:11]} 15. Kg2 {[%emt 0:09:29]} Nxf3 {[%emt 0:03:06]} 16. Kxf3 {[%emt 0:00:58]} Nb4 {[%emt 0:00:35]} 17. Ne4 {[%emt 0:05:10]} Bb7 {[%emt 0:02:13]} 18. Bd2 {[%emt 0:08:26]} Nc2 {[%emt 0:00:38]} 19. Rac1 {[%emt 0:00:43]} Nd4+ {[%emt 0:00:00]} 20. Ke3 {[%emt 0:00:22]} Nf5+ {[%emt 0:00:00]} 21. Kf4 {[%emt 0:00:10]} e5+ {[%emt 0:00:00]} 0-1

[Event "Fagernes GM Open Autumn 2024"]
[Site "Fagernes"]
[Date "2024.10.07"]
[Round "2.28"]
[White "Gasland, Lukas Dominik"]
[Black "Advaitt Srikant Koduri"]
[Result "1/2-1/2"]
[ECO "A12"]
[WhiteElo "1905"]
[BlackElo "2162"]
[Annotator "RC"]
[PlyCount "60"]
[EventDate "2024.10.03"]
[EventType "swiss"]
[EventCountry "NOR"]
[SourceTitle "playchess.com"]
[Source "ChessBase"]
[SourceQuality "1"]
[TimeControl "40/6000:2400+30"]

1. Nf3 {[%emt 0:00:00]} d5 {[%emt 0:00:00]} 2. g3 {[%emt 0:00:00]} Nf6 {[%emt 0:00:00]} 3. Bg2 {[%emt 0:00:00]} c6 {[%emt 0:00:00]} 4. O-O {[%emt 0:00:00]} Bf5 {[%emt 0:00:00]} 5. b3 {[%emt 0:01:48]} e6 {[%emt 0:00:13]} 6. Bb2 {[%emt 0:00:00]} h6 {[%emt 0:00:00]} 7. d3 {[%emt 0:00:22]} Be7 {[%emt 0:00:00]} 8. Nbd2 {[%emt 0:00:00]} O-O {[%emt 0:00:21]} 9. c4 {[%emt 0:04:33]} Nbd7 {[%emt 0:04:30]} 10. Qc2 {[%emt 0:04:00]} Bh7 {[%emt 0:06:31]} 11. a3 {[%emt 0:02:59]} a5 {[%emt 0:05:21]} 12. Rfb1 {[%emt 0:04:59]} Bc5 {[%emt 0:10:20]} 13. b4 {[%emt 0:05:38]} axb4 {[%emt 0:07:53]} 14. axb4 {[%emt 0:00:40]} Rxa1 {[%emt 0:02:06]} 15. Bxa1 {[%emt 0:00:00]} Bb6 {[%emt 0:00:20]} 16. c5 {[%emt 0:15:11]} Bc7 {[%emt 0:00:00]} 17. Bb2 {[%emt 0:00:00]} e5 {[%emt 0:02:20]} 18. e4 {[%emt 0:01:44]} Qe7 {[%emt 0:02:39]} 19. Ra1 {[%emt 0:01:25]} b6 {[%emt 0:08:06]} 20. cxb6 {[%emt 0:12:49]} Bxb6 {[%emt 0:00:39]} 21. Qxc6 {[%emt 0:01:32]} dxe4 {[%emt 0:10:42]} 22. dxe4 {[%emt 0:06:16]} Qxb4 {[%emt 0:08:11]} 23. Ba3 {[%emt 0:06:25]} Qa5 {[%emt 0:00:49]} 24. Nc4 {[%emt 0:02:01]} Qa8 {[%emt 0:06:05]} 25. Qxa8 {[%emt 0:05:09]} Rxa8 {[%emt 0:00:00]} 26. Nxb6 {[%emt 0:00:00]} Nxb6 {[%emt 0:00:00]} 27. Nxe5 {[%emt 0:00:00]} Bxe4 {[%emt 0:00:00]} 28. Bb2 {[%emt 0:00:00]} Bxg2 {[%emt 0:00:00]} 29. Kxg2 {[%emt 0:00:00]} Rxa1 {[%emt 0:00:00]} 30. Bxa1 {[%emt 0:00:00]} Nbd5 {[%emt 0:00:00]} 1/2-1/2